bitfinex-derivatives/quotes_BNBF0:USTF0_20250221
["timestamp","ask_amount","ask_price","bid_price","bid_amount"]
[1740148484691,1.11912865,663.94,663.09,0.30161818]
[1740148484891,1.11912865,663.93,663.09,0.30161818]
[1740148485092,1.11912865,663.92,663.09,0.30161818]
[1740148485393,1.95540229,663.91,663.09,0.30161818]
[1740148485584,1.11912865,663.9,663.09,0.30161818]
[1740148485788,1.11912865,663.89,663.09,0.30161818]
[1740148485989,1.11912865,663.88,663.09,0.30161818]
[1740148486186,1.11964191,663.87,663.09,0.30161818]
[1740148486385,1.11964191,663.86,663.09,0.30161818]
[1740148486592,1.11964191,663.85,663.09,0.30161818]
[1740148486792,1.95591555,663.84,663.09,0.30161818]
[1740148486993,1.11964191,663.83,663.09,0.30161818]
[1740148487295,1.11964191,663.82,663.09,0.30161818]
[1740148487486,1.95591555,663.81,663.09,0.30161818]
[1740148487686,1.11964191,663.8,663.09,0.30161818]
[1740148487887,1.11964191,663.79,663.09,0.30161818]
[1740148488089,1.11964191,663.78,663.09,0.30161818]
[1740148488288,1.11964191,663.77,663.09,0.30161818]
[1740148488593,1.11964191,663.76,663.09,0.30161818]
[1740148488793,1.11964191,663.75,663.09,0.30161818]
[1740148488995,1.11964191,663.74,663.09,0.30161818]
[1740148489195,1.11964191,663.73,663.09,0.30161818]
[1740148489496,1.95591555,663.72,663.09,0.30161818]
[1740148489793,1.11964191,663.71,663.09,0.30161818]
[1740148489993,1.11964191,663.7,663.09,0.30161818]
[1740148490195,1.11964191,663.69,663.09,0.30161818]
[1740148490394,1.11964191,663.68,663.09,0.30161818]
[1740148490590,1.11964191,663.67,663.09,0.30161818]
[1740148490792,1.11964191,663.66,663.09,0.30161818]
[1740148491088,1.11964191,663.65,663.09,0.30161818]
[1740148491293,1.11964191,663.64,663.09,0.30161818]
[1740148491489,1.11964191,663.63,663.09,0.30161818]
[1740148491693,1.11964191,663.62,663.09,0.30161818]
[1740148491996,1.11964191,663.61,663.09,0.30161818]
[1740148492297,1.11964191,663.6,663.09,0.30161818]
[1740148492488,0.83627364,663.6,663.09,0.30161818]
[1740148492688,1.12083811,663.59,663.09,0.30161818]
[1740148492892,1.1208143,663.58,663.09,0.30161818]
[1740148493093,0.30094194,664.58,663.09,0.30161818]
[1740148493289,1.12083593,664.57,663.09,0.30161818]
[1740148493495,1.12083593,664.56,663.09,0.30161818]
[1740148493697,1.12083593,664.55,663.09,0.30161818]
[1740148493887,1.12083593,664.54,663.09,0.30161818]
[1740148494088,1.12083593,664.53,663.09,0.30161818]
[1740148494293,1.12083593,664.52,663.09,0.30161818]
[1740148494493,1.12083593,664.51,663.09,0.30161818]
[1740148494789,1.95878413,664.5,663.09,0.30161818]
[1740148495090,1.12083593,664.49,663.09,0.30161818]
[1740148495288,0.30094647,664.57,663.09,0.30161818]
[1740148495289,1.95878413,664.48,663.09,0.30161818]
[1740148495491,1.12083593,664.47,663.09,0.30161818]
[1740148495688,1.12083593,664.46,663.09,0.30161818]
[1740148495986,1.95878413,664.45,663.09,0.30161818]
[1740148496187,1.95878413,664.44,663.09,0.30161818]
[1740148496394,1.95878413,664.43,663.09,0.30161818]
[1740148496595,1.12083593,664.42,663.09,0.30161818]
[1740148496895,1.12083593,664.41,663.09,0.30161818]
[1740148497089,1.12083593,664.4,663.09,0.30161818]
[1740148497290,1.12083593,664.39,663.09,0.30161818]
[1740148497489,1.12083593,664.38,663.09,0.30161818]
[1740148497690,1.12083593,664.37,663.09,0.30161818]
[1740148497893,1.12083593,664.36,663.09,0.30161818]
[1740148498094,1.12083593,664.35,663.09,0.30161818]
[1740148498293,1.12083593,664.34,663.09,0.30161818]
[1740148498489,1.95878413,664.33,663.09,0.30161818]
[1740148498689,1.12083593,664.32,663.09,0.30161818]
[1740148498889,1.12083593,664.31,663.09,0.30161818]
[1740148499088,1.12083593,664.3,663.09,0.30161818]
[1740148499293,1.12083593,664.29,663.09,0.30161818]
[1740148499496,1.12083593,664.28,663.09,0.30161818]
[1740148499795,1.12083593,664.27,663.09,0.30161818]
[1740148499994,1.12083593,664.26,663.09,0.30161818]
[1740148500197,1.12083593,664.25,663.09,0.30161818]
[1740148500396,1.12083593,664.24,663.09,0.30161818]
[1740148500596,1.12083593,664.23,663.09,0.30161818]
[1740148500795,1.12083593,664.22,663.09,0.30161818]
[1740148500992,0.8379482,664.23,663.09,0.30161818]
[1740148500993,0.8379482,664.21,663.09,0.30161818]
[1740148501196,1.12140281,664.2,663.09,0.30161818]
[1740148501396,1.12140281,664.19,663.09,0.30161818]
[1740148501699,1.95935101,664.18,663.09,0.30161818]
[1740148501898,1.12140281,664.17,663.09,0.30161818]
[1740148502098,1.12140281,664.16,663.09,0.30161818]
[1740148502292,0.8379482,664.17,663.09,0.30161818]
[1740148502293,1.95935101,664.15,663.09,0.30161818]
[1740148502499,1.12140281,664.14,663.09,0.30161818]
[1740148502698,1.95935101,664.13,663.09,0.30161818]
[1740148502897,1.12140281,664.12,663.09,0.30161818]
[1740148503094,1.12140281,664.11,663.09,0.30161818]
[1740148503299,1.12140281,664.1,663.09,0.30161818]
[1740148503502,0.8379482,664.11,663.09,0.30161818]
[1740148503503,1.12140281,664.09,663.09,0.30161818]
[1740148503697,1.12140281,664.08,663.09,0.30161818]
[1740148503898,1.12140281,664.07,663.09,0.30161818]
[1740148504200,1.12140281,664.06,663.09,0.30161818]
[1740148504396,1.12140281,664.05,663.09,0.30161818]
[1740148504594,1.12140281,664.04,663.09,0.30161818]
[1740148504799,1.12140281,664.03,663.09,0.30161818]
[1740148505101,1.95935101,664.02,663.09,0.30161818]
[1740148505399,1.95935101,664.01,663.09,0.30161818]
[1740148505596,1.12140281,664.0,663.09,0.30161818]
[1740148505794,1.12140281,663.99,663.09,0.30161818]
[1740148505999,1.12140281,663.98,663.09,0.30161818]
[1740148506201,1.95935101,663.97,663.09,0.30161818]
[1740148506402,1.12140281,663.96,663.09,0.30161818]
[1740148506595,1.95935101,663.95,663.09,0.30161818]
[1740148506796,1.12140281,663.94,663.09,0.30161818]
[1740148507000,0.8379482,663.95,663.09,0.30161818]
[1740148507001,1.12140281,663.93,663.09,0.30161818]
[1740148507196,1.12140281,663.92,663.09,0.30161818]
[1740148507400,1.12140281,663.91,663.09,0.30161818]
[1740148507603,1.95935101,663.9,663.09,0.30161818]
[1740148507797,1.12140281,663.89,663.09,0.30161818]
[1740148507998,1.12140281,663.88,663.09,0.30161818]
[1740148508203,1.12140281,663.87,663.09,0.30161818]
[1740148508503,1.95935101,663.86,663.09,0.30161818]
[1740148508705,1.12140281,663.85,663.09,0.30161818]
[1740148508897,1.12140281,663.84,663.09,0.30161818]
[1740148509097,1.12140281,663.83,663.09,0.30161818]
[1740148509301,1.12140281,663.82,663.09,0.30161818]
[1740148509502,1.12140281,663.81,663.09,0.30161818]
[1740148509698,1.12140281,663.8,663.09,0.30161818]
[1740148509902,1.12140281,663.79,663.09,0.30161818]
[1740148510105,1.95935101,663.78,663.09,0.30161818]
[1740148510405,1.12140281,663.77,663.09,0.30161818]
[1740148510600,1.429,664.24,663.09,0.30161818]
[1740148510601,1.95935101,663.76,663.09,0.30161818]
[1740148510799,1.12140281,663.75,663.09,0.30161818]
[1740148510998,1.12140281,663.74,663.09,0.30161818]
[1740148511198,1.95935101,663.73,663.09,0.30161818]
[1740148511505,1.12140281,663.72,663.19,1.34541414]
[1740148511705,1.12140281,663.71,663.19,1.34541414]
[1740148511900,1.12140281,663.7,663.19,1.34541414]
[1740148512102,1.12140281,663.69,663.19,1.34541414]
[1740148512303,1.95935101,663.68,663.19,1.34541414]
[1740148512600,1.12140281,663.67,663.19,1.34541414]
[1740148512806,1.12140281,663.66,663.2,0.30156815]
[1740148513003,1.12135146,663.65,663.2,0.30156815]
[1740148513201,1.95929966,663.64,663.2,0.30156815]
[1740148513399,1.12135146,663.63,663.2,0.30156815]
[1740148513599,1.95929966,663.62,663.2,0.30156815]
[1740148513800,1.12135146,663.61,663.2,0.30156815]
[1740148514004,1.12135146,663.6,663.2,0.30156815]
[1740148514203,1.95929966,663.59,663.2,0.30156815]
[1740148514400,1.12135146,663.58,663.2,0.30156815]
[1740148514606,1.95929966,663.57,663.2,0.30156815]
[1740148514801,1.12135146,663.56,663.2,0.30156815]
[1740148515006,1.12135146,663.55,663.2,0.30156815]
[1740148515201,1.12135146,663.54,663.2,0.30156815]
[1740148515399,0.8379482,663.55,663.2,0.30156815]
[1740148515607,1.95910791,663.54,663.2,0.30156815]
[1740148515801,1.12115971,663.53,663.2,0.30156815]
[1740148516006,0.8379482,663.54,663.2,0.30156815]
[1740148516206,1.95913096,663.53,663.2,0.30156815]
[1740148516407,0.8379482,663.53,663.2,0.30156815]
[1740148516809,1.429,664.24,663.2,0.30156815]
[1740148517004,1.12123022,664.23,663.2,0.30156815]
[1740148517210,1.12123022,664.22,663.2,0.30156815]
[1740148517511,1.12123022,664.21,663.2,0.30156815]
[1740148517708,1.12123022,664.2,663.2,0.30156815]
[1740148517909,1.12123022,664.19,663.2,0.30156815]
[1740148518107,1.12123022,664.18,663.2,0.30156815]
[1740148518308,1.12123022,664.17,663.2,0.30156815]
[1740148518506,1.12123022,664.16,663.2,0.30156815]
[1740148518703,1.12123022,664.15,663.2,0.30156815]
[1740148518903,1.12123022,664.14,663.2,0.30156815]
[1740148519104,1.95951015,664.13,663.2,0.30156815]
[1740148519308,1.12123022,664.12,663.2,0.30156815]
[1740148519506,1.12123022,664.11,663.2,0.30156815]
[1740148519704,1.12123022,664.1,663.2,0.30156815]
[1740148520008,1.12123022,664.09,663.2,0.30156815]
[1740148520206,1.12123022,664.08,663.2,0.30156815]
[1740148520510,1.95951015,664.07,663.2,0.30156815]
[1740148520710,1.12123022,664.06,663.2,0.30156815]
[1740148520909,1.12123022,664.05,663.2,0.30156815]
[1740148521110,1.12123022,664.04,663.2,0.30156815]
[1740148521409,1.95951015,664.03,663.2,0.30156815]
[1740148521610,1.12123022,664.02,663.2,0.30156815]
[1740148521810,1.12123022,664.01,663.2,0.30156815]
[1740148522010,1.12123022,664.0,663.2,0.30156815]
[1740148522207,1.12123022,663.99,663.2,0.30156815]
[1740148522408,1.95951015,663.98,663.2,0.30156815]
[1740148522607,1.12123022,663.97,663.2,0.30156815]
[1740148522805,1.95951015,663.96,663.2,0.30156815]
[1740148523006,1.95951015,663.95,663.2,0.30156815]
[1740148523311,1.12123022,663.94,663.2,0.30156815]
[1740148523507,1.95951015,663.93,663.2,0.30156815]
[1740148523705,1.12123022,663.92,663.2,0.30156815]
[1740148523907,1.12123022,663.91,663.2,0.30156815]
[1740148524109,1.12123022,663.9,663.2,0.30156815]
[1740148524313,1.12123022,663.89,663.2,0.30156815]
[1740148524513,1.12123022,663.88,663.2,0.30156815]
[1740148524710,1.12123022,663.87,663.2,0.30156815]
[1740148524913,1.12123022,663.86,663.2,0.30156815]
[1740148525109,1.12123022,663.85,663.2,0.30156815]
[1740148525313,1.12123022,663.84,663.2,0.30156815]
[1740148525515,1.12123022,663.83,663.2,0.30156815]
[1740148525714,1.12123022,663.82,663.2,0.30156815]
[1740148525914,1.12123022,663.81,663.2,0.30156815]
[1740148526109,1.12123022,663.8,663.2,0.30156815]
[1740148526312,1.12123022,663.79,663.2,0.30156815]
[1740148526513,1.12123022,663.78,663.2,0.30156815]
[1740148526816,0.30094647,664.57,663.2,0.30156815]
[1740148526817,1.95951015,663.77,663.2,0.30156815]
[1740148527015,1.12123022,663.76,663.2,0.30156815]
[1740148527217,1.12123022,663.75,663.2,0.30156815]
[1740148527412,1.95951015,663.74,663.2,0.30156815]
[1740148527619,1.12123022,663.73,663.2,0.30156815]
[1740148527912,1.12123022,663.72,663.2,0.30156815]
[1740148528115,0.83827993,663.73,663.2,0.30156815]
[1740148528320,0.30094647,664.57,663.2,0.30156815]
[1740148529219,1.12130678,664.56,663.2,0.30156815]
[1740148529422,1.12130678,664.55,663.2,0.30156815]
[1740148529621,1.12130678,664.54,663.2,0.30156815]
[1740148529821,1.95953121,664.53,663.2,0.30156815]
[1740148530020,1.12130678,664.52,663.2,0.30156815]
[1740148530321,1.12130678,664.51,663.2,0.30156815]
[1740148530522,1.95953121,664.5,663.2,0.30156815]
[1740148530717,1.12130678,664.49,663.2,0.30156815]
[1740148530918,1.12130678,664.48,663.2,0.30156815]
[1740148531220,1.95953121,664.47,663.2,0.30156815]
[1740148531518,1.12130678,664.46,663.2,0.30156815]
[1740148531720,1.12130678,664.45,663.2,0.30156815]
[1740148531921,1.12130678,664.44,663.2,0.30156815]
[1740148532215,1.12130678,664.43,663.2,0.30156815]
[1740148532417,1.12130678,664.42,663.2,0.30156815]
[1740148532620,1.12130678,664.41,663.2,0.30156815]
[1740148532821,1.12130678,664.4,663.2,0.30156815]
[1740148533021,1.12130678,664.39,663.2,0.30156815]
[1740148533223,1.12130678,664.38,663.2,0.30156815]
[1740148533522,1.12130678,664.37,663.2,0.30156815]
[1740148533715,1.12130678,664.36,663.2,0.30156815]
[1740148533916,1.12130678,664.35,663.2,0.30156815]
[1740148534120,1.12130678,664.34,663.2,0.30156815]
[1740148534322,1.12130678,664.33,663.2,0.30156815]
[1740148534621,1.95953121,664.32,663.2,0.30156815]
[1740148534821,1.12130678,664.31,663.2,0.30156815]
[1740148535022,1.12130678,664.3,663.2,0.30156815]
[1740148535323,1.95953121,664.29,663.2,0.30156815]
[1740148535517,1.12130678,664.28,663.2,0.30156815]
[1740148535722,1.95953121,664.27,663.2,0.30156815]
[1740148535923,1.12130678,664.26,663.2,0.30156815]
[1740148536118,1.12130678,664.25,663.2,0.30156815]
[1740148536318,1.12130678,664.24,663.2,0.30156815]
[1740148536518,1.12130678,664.23,663.2,0.30156815]
[1740148536717,1.12130678,664.22,663.2,0.30156815]
[1740148536919,1.12130678,664.21,663.2,0.30156815]
[1740148537119,1.12130678,664.2,663.2,0.30156815]
[1740148537328,1.12130678,664.19,663.2,0.30156815]
[1740148537523,1.12130678,664.18,663.2,0.30156815]
[1740148537718,1.12130678,664.17,663.2,0.30156815]
[1740148537925,1.12130678,664.16,663.2,0.30156815]
[1740148538120,1.12130678,664.15,663.2,0.30156815]
[1740148538426,1.12130678,664.14,663.2,0.30156815]
[1740148538626,1.12130678,664.13,663.22,1.34541414]
[1740148538822,0.83822443,664.15,663.24,0.30154996]
[1740148539023,1.12032043,664.14,663.24,0.30154996]
[1740148539225,1.12032043,664.13,663.24,0.30154996]
[1740148539426,1.12032043,664.12,663.24,0.30154996]
[1740148539625,1.12032043,664.11,663.24,0.30154996]
[1740148539826,1.12032043,664.1,663.24,0.30154996]
[1740148540027,1.12032043,664.09,663.24,0.30154996]
[1740148540227,1.12032043,664.08,663.24,0.30154996]
[1740148540424,1.12032043,664.07,663.24,0.30154996]
[1740148540621,1.12032043,664.06,663.24,0.30154996]
[1740148540821,1.12032043,664.05,663.24,0.30154996]
[1740148541025,1.95854486,664.04,663.24,0.30154996]
[1740148541227,1.12032043,664.03,663.24,0.30154996]
[1740148541424,1.95854486,664.02,663.24,0.30154996]
[1740148541629,1.95854486,664.01,663.24,0.30154996]
[1740148541924,1.12032043,664.0,663.24,0.30154996]
[1740148542124,1.12032043,663.99,663.24,0.30154996]
[1740148542323,1.12032043,663.98,663.24,0.30154996]
[1740148542620,1.12032043,663.97,663.24,0.30154996]
[1740148542828,1.12032043,663.96,663.24,0.30154996]
[1740148543029,1.12032043,663.95,663.34,1.34541414]
[1740148543223,1.12032043,663.94,663.35,0.30149996]
[1740148543425,1.12032043,663.93,663.35,0.30149996]
[1740148543626,0.83822443,663.94,663.35,0.30149996]
[1740148543825,1.95744754,663.93,663.35,0.30149996]
[1740148544030,0.83822443,663.93,663.35,0.30149996]
[1740148544430,1.11,664.39,663.35,0.30149996]
[1740148544730,1.11847508,664.38,663.35,0.30149996]
[1740148544930,1.11847508,664.37,663.35,0.30149996]
[1740148545129,1.11,664.39,663.35,0.30149996]
[1740148545130,1.11847508,664.36,663.35,0.30149996]
[1740148545330,1.11847508,664.35,663.35,0.30149996]
[1740148545530,1.11847508,664.34,663.35,0.30149996]
[1740148545730,1.11847508,664.33,663.35,0.30149996]
[1740148546030,1.11847508,664.32,663.35,0.30149996]
[1740148546332,1.11847508,664.31,663.35,0.30149996]
[1740148546630,1.11792659,664.3,663.35,0.30149996]
[1740148546825,1.11792659,664.29,663.35,0.30149996]
[1740148547030,1.11792659,664.28,663.35,0.30149996]
[1740148547226,1.11792659,664.27,663.35,0.30149996]
[1740148547430,1.11792659,664.26,663.35,0.30149996]
[1740148547632,1.95382742,664.25,663.35,0.30149996]
[1740148547832,1.11792659,664.24,663.35,0.30149996]
[1740148548033,1.11792659,664.23,663.35,0.30149996]
[1740148548236,1.11792659,664.22,663.35,0.30149996]
[1740148548428,1.11760232,664.21,663.35,0.30149996]
[1740148548630,1.11760232,664.2,663.35,0.30149996]
[1740148548830,1.11760232,664.19,663.35,0.30149996]
[1740148549036,1.11760232,664.18,663.35,0.30149996]
[1740148549237,1.11760232,664.17,663.35,0.30149996]
[1740148549437,1.11760232,664.16,663.35,0.30149996]
[1740148549630,1.11760232,664.15,663.35,0.30149996]
[1740148549830,1.11760232,664.14,663.35,0.30149996]
[1740148550030,1.11760232,664.13,663.35,0.30149996]
[1740148550230,1.11760232,664.12,663.35,0.30149996]
[1740148550435,1.11760232,664.11,663.35,0.30149996]
[1740148550635,1.11760232,664.1,663.35,0.30149996]
[1740148550835,1.11760232,664.09,663.35,0.30149996]
[1740148551036,1.11760232,664.08,663.35,0.30149996]
[1740148551233,1.11760232,664.07,663.35,0.30149996]
[1740148551434,1.11760232,664.06,663.35,0.30149996]
[1740148551635,1.11760232,664.05,663.35,0.30149996]
[1740148551833,1.95350315,664.04,663.35,0.30149996]
[1740148552033,1.11760232,664.03,663.35,0.30149996]
[1740148552234,1.95350315,664.02,663.35,0.30149996]
[1740148552438,1.95350315,664.01,663.35,0.30149996]
[1740148552639,1.11760232,664.0,663.35,0.30149996]
[1740148552841,1.11760232,663.99,663.35,0.30149996]
[1740148553042,1.11760232,663.98,663.35,0.30149996]
[1740148553236,1.11760232,663.97,663.35,0.30149996]
[1740148553439,1.11760232,663.96,663.35,0.30149996]
[1740148553636,1.11760232,663.95,663.35,0.30149996]
[1740148553836,1.11760232,663.94,663.35,0.30149996]
[1740148554042,1.11760232,663.93,663.35,0.30149996]
[1740148554338,1.11760232,663.92,663.35,0.30149996]
[1740148554536,1.11760232,663.91,663.35,0.30149996]
[1740148554741,1.11760232,663.9,663.35,0.30149996]
[1740148554941,1.11760232,663.89,663.35,0.30149996]
[1740148555143,1.11760232,663.88,663.35,0.30149996]
[1740148555344,1.11760232,663.87,663.35,0.30149996]
[1740148555536,1.95350315,663.86,663.35,0.30149996]
[1740148555739,1.11760232,663.85,663.35,0.30149996]
[1740148555936,1.11760232,663.84,663.35,0.30149996]
[1740148556138,1.95350315,663.83,663.35,0.30149996]
[1740148556339,1.11760232,663.82,663.35,0.30149996]
[1740148556639,1.95350315,663.81,663.35,0.30149996]
[1740148556844,1.11760232,663.8,663.35,0.30149996]
[1740148557143,1.95350315,663.79,663.35,0.30149996]
[1740148557342,1.11760232,663.78,663.35,0.30149996]
[1740148557540,1.95350315,663.77,663.35,0.30149996]
[1740148557744,1.11760232,663.76,663.35,0.30149996]
[1740148557943,0.83590083,663.77,663.35,0.30149996]
[1740148557944,1.11760232,663.75,663.35,0.30149996]
[1740148558244,1.95350315,663.74,663.35,0.30149996]
[1740148558446,1.11760232,663.73,663.35,0.30149996]
[1740148558645,1.11760232,663.72,663.35,0.30149996]
[1740148558847,1.11760232,663.71,663.35,0.30149996]
[1740148559147,1.95350315,663.7,663.35,0.30149996]
[1740148559339,1.95350315,663.69,663.35,0.30149996]
[1740148559541,1.11760232,663.68,663.35,0.30149996]
[1740148559746,1.11760232,663.67,663.35,0.30149996]
[1740148559941,1.95350315,663.66,663.35,0.30149996]
[1740148560139,1.95350315,663.65,663.35,0.30149996]
[1740148560345,0.83590083,663.65,663.35,0.30149996]
[1740148560545,1.11,664.39,663.35,0.30149996]
[1740148560743,1.11797551,664.38,663.35,0.30149996]
[1740148560945,1.11797551,664.37,663.35,0.30149996]
[1740148561144,1.11797551,664.36,663.35,0.30149996]
[1740148561444,1.11797551,664.35,663.35,0.30149996]
[1740148561652,1.11797551,664.34,663.35,0.30149996]
[1740148561845,1.11797551,664.33,663.35,0.30149996]
[1740148562049,1.95371341,664.32,663.35,0.30149996]
[1740148562246,1.11797551,664.31,663.35,0.30149996]
[1740148562446,1.11797551,664.3,663.35,0.30149996]
[1740148562645,1.95371341,664.29,663.35,0.30149996]
[1740148562844,1.11797551,664.28,663.35,0.30149996]
[1740148563049,1.11797551,664.27,663.35,0.30149996]
[1740148563245,1.11797551,664.26,663.35,0.30149996]
[1740148563449,1.11797551,664.25,663.35,0.30149996]
[1740148563646,1.11797551,664.24,663.35,0.30149996]
[1740148563952,1.11797551,664.23,663.35,0.30149996]
[1740148564148,1.11797551,664.22,663.35,0.30149996]
[1740148564349,1.11797551,664.21,663.35,0.30149996]
[1740148564647,1.11797551,664.2,663.35,0.30149996]
[1740148564849,1.11797551,664.19,663.35,0.30149996]
[1740148565048,1.11797551,664.18,663.35,0.30149996]
[1740148565352,1.11797551,664.17,663.35,0.30149996]
[1740148565652,1.11797551,664.16,663.35,0.30149996]
[1740148565945,1.95371341,664.15,663.35,0.30149996]
[1740148566152,1.11797551,664.14,663.35,0.30149996]
[1740148566344,1.11797551,664.13,663.35,0.30149996]
[1740148566550,1.95371341,664.12,663.35,0.30149996]
[1740148566747,1.11797551,664.11,663.35,0.30149996]
[1740148566951,1.11797551,664.1,663.35,0.30149996]
[1740148567152,0.8357379,664.12,663.35,0.30149996]
[1740148567153,1.11797551,664.09,663.35,0.30149996]
[1740148567351,1.11797551,664.08,663.35,0.30149996]
[1740148567546,0.8357379,664.09,663.35,0.30149996]
[1740148567547,1.11797551,664.07,663.35,0.30149996]
[1740148567749,1.95371341,664.06,663.35,0.30149996]
[1740148568050,1.11797551,664.05,663.35,0.30149996]
[1740148568350,1.11797551,664.04,663.35,0.30149996]
[1740148568550,1.11797551,664.03,663.35,0.30149996]
[1740148568751,1.11844017,664.02,663.35,0.30149996]
[1740148568952,1.11844017,664.01,663.35,0.30149996]
[1740148569151,0.8357379,664.03,663.35,0.30149996]
[1740148569152,1.11844017,664.0,663.35,0.30149996]
[1740148569353,1.11844017,663.99,663.35,0.30149996]
[1740148569553,0.8357379,664.03,663.35,0.30149996]
[1740148569554,1.11844017,663.98,663.35,0.30149996]
[1740148569755,1.11844017,663.97,663.35,0.30149996]
[1740148569949,1.11844017,663.96,663.35,0.30149996]
[1740148570154,1.11844017,663.95,663.35,0.30149996]
[1740148570354,1.11844017,663.94,663.35,0.30149996]
[1740148570555,1.11844017,663.93,663.35,0.30149996]
[1740148570756,1.11844017,663.92,663.35,0.30149996]
[1740148570950,1.11844017,663.91,663.35,0.30149996]
[1740148571154,1.11844017,663.9,663.35,0.30149996]
[1740148571351,1.11844017,663.89,663.35,0.30149996]
[1740148571556,1.11844017,663.88,663.35,0.30149996]
[1740148571754,1.95417807,663.87,663.35,0.30149996]
[1740148571951,1.11844017,663.86,663.35,0.30149996]
[1740148572155,1.11844017,663.85,663.35,0.30149996]
[1740148572356,1.11844017,663.84,663.35,0.30149996]
[1740148572657,1.11844017,663.83,663.35,0.30149996]
[1740148572857,1.11844017,663.82,663.35,0.30149996]
[1740148573058,1.11844017,663.81,663.35,0.30149996]
[1740148573254,1.11844017,663.8,663.35,0.30149996]
[1740148573464,1.11844017,663.79,663.35,0.30149996]
[1740148573761,0.8357379,663.79,663.35,0.30149996]
[1740148574563,1.626,664.5,663.35,0.30149996]
[1740148575458,1.11939777,664.49,663.35,0.30149996]
[1740148575662,1.11939777,664.48,663.35,0.30149996]
[1740148575862,1.11939777,664.47,663.35,0.30149996]
[1740148576064,1.95611036,664.46,663.35,0.30149996]
[1740148576264,1.11939777,664.45,663.35,0.30149996]
[1740148576462,1.11939777,664.44,663.35,0.30149996]
[1740148576658,1.11939777,664.43,663.35,0.30149996]
[1740148576863,1.11939777,664.42,663.35,0.30149996]
[1740148577064,1.11939777,664.41,663.35,0.30149996]
[1740148577260,1.11939777,664.4,663.35,0.30149996]
[1740148577464,1.11939777,664.39,663.35,0.30149996]
[1740148577663,1.11939777,664.38,663.35,0.30149996]
[1740148577864,1.11939777,664.37,663.35,0.30149996]
[1740148578160,0.83671259,664.39,663.35,0.30149996]
[1740148578161,1.11939777,664.36,663.35,0.30149996]
[1740148578464,1.11939777,664.35,663.35,0.30149996]
[1740148578656,1.11939777,664.34,663.35,0.30149996]
[1740148578862,1.11939777,664.33,663.35,0.30149996]
[1740148579061,1.11939777,664.32,663.35,0.30149996]
[1740148579261,1.11939777,664.31,663.35,0.30149996]
[1740148579466,1.11939777,664.3,663.35,0.30149996]
[1740148579666,1.11939777,664.29,663.35,0.30149996]
[1740148579860,1.11939777,664.28,663.35,0.30149996]
[1740148580166,1.11939777,664.27,663.35,0.30149996]
[1740148580365,1.11939777,664.26,663.35,0.30149996]
[1740148580559,1.11939777,664.25,663.35,0.30149996]
[1740148580763,1.11939777,664.24,663.35,0.30149996]
[1740148581065,1.11939777,664.23,663.35,0.30149996]
[1740148581259,1.11939777,664.22,663.35,0.30149996]
[1740148581465,1.11939777,664.21,663.35,0.30149996]
[1740148581665,1.11939777,664.2,663.35,0.30149996]
[1740148581860,1.11939777,664.19,663.35,0.30149996]
[1740148582063,1.11974614,664.18,663.35,0.30149996]
[1740148582263,1.11974614,664.17,663.35,0.30149996]
[1740148582465,1.11965369,664.16,663.35,0.30149996]
[1740148582662,1.11965369,664.15,663.35,0.30149996]
[1740148582861,1.11965369,664.14,663.35,0.30149996]
[1740148583063,1.11965369,664.13,663.35,0.30149996]
[1740148583261,1.11965369,664.12,663.35,0.30149996]
[1740148583468,1.11965369,664.11,663.35,0.30149996]
[1740148583665,1.95636628,664.1,663.35,0.30149996]
[1740148583966,1.11965369,664.09,663.35,0.30149996]
[1740148584164,1.11965369,664.08,663.35,0.30149996]
[1740148584363,1.95636628,664.07,663.35,0.30149996]
[1740148584563,1.11965369,664.06,663.35,0.30149996]
[1740148584761,1.11965369,664.05,663.35,0.30149996]
[1740148584962,1.95636628,664.04,663.35,0.30149996]
[1740148585267,1.11965369,664.03,663.35,0.30149996]
[1740148585462,1.95636628,664.02,663.35,0.30149996]
[1740148585663,1.11965369,664.01,663.35,0.30149996]
[1740148585863,1.11959632,664.0,663.35,0.30149996]
[1740148586067,1.11959632,663.99,663.35,0.30149996]
[1740148586263,1.11959632,663.98,663.35,0.30149996]
[1740148586465,1.11959632,663.97,663.35,0.30149996]
[1740148586769,1.11959632,663.96,663.35,0.30149996]
[1740148587069,1.95630891,663.95,663.35,0.30149996]
[1740148587264,1.11959632,663.94,663.35,0.30149996]
[1740148587462,1.95630891,663.93,663.35,0.30149996]
[1740148587668,1.11959632,663.92,663.35,0.30149996]
[1740148587867,1.95630891,663.91,663.35,0.30149996]
[1740148588067,1.11959632,663.9,663.35,0.30149996]
[1740148588369,1.95630891,663.89,663.35,0.30149996]
[1740148588570,1.95630891,663.88,663.35,0.30149996]
[1740148588772,1.11959632,663.87,663.35,0.30149996]
[1740148589069,1.95630891,663.86,663.35,0.30149996]
[1740148589270,1.11959632,663.85,663.35,0.30149996]
[1740148589469,1.95630891,663.84,663.35,0.30149996]
[1740148589665,1.11959632,663.83,663.35,0.30149996]
[1740148589871,0.83671259,663.84,663.35,0.30149996]
[1740148589872,1.11959632,663.82,663.35,0.30149996]
[1740148590067,1.95630891,663.81,663.35,0.30149996]
[1740148590268,1.11959632,663.8,663.35,0.30149996]
[1740148590572,1.11959632,663.79,663.35,0.30149996]
[1740148590765,1.11959632,663.78,663.35,0.30149996]